Cogmind - Beta 13 @@@ ROGUE MODE // 2024.07.06 @ 18:19:54 Player: Elec0 Result: Destroyed by S-10 Pest with Light Assault Rifle Performance ------------- Evolutions (1) 500 Regions Visited (2) 400 Robots Destroyed (19) 95 Value Destroyed (143) 143 Prototype IDs (0) 0 Alien Tech Used (0) 0 Bonus (0) 0 TOTAL SCORE: 1138 Bonus ------- None Cogmind --------- Core Integrity 0/400 Matter 131/300 Energy 98/100 System Corruption 19% Temperature Cool (0) Movement Core (50) Location -9/Materials Parts ------- > --- POWER (1) -------- (None) > --- PROPULSION (3) --- (None) > --- UTILITY (3) ------ ECM Suite > --- WEAPON (2) ------- (None) > --- INVENTORY (5) ---- Light Treads Large Storage Unit Structural Scanner Sensor Array Improved Terrain Scanner Peak State ------------ > --- POWER ------------ Ion Engine > --- PROPULSION ------- Wheel Compact Wheel Compact Wheel > --- UTILITY ---------- Small Storage Unit Improved Terrain Scanner Terrain Scan Processor > --- WEAPON ----------- Assault Rifle Assault Rifle > --- INVENTORY -------- Wheel Wheel Structural Scanner Sensor Array Seismic Detector Seismic Detector ECM Suite Mining Laser [Rating: 12] Favorites ----------- Power Ion Engine Engine Ion Engine Propulsion Compact Wheel Wheel Compact Wheel Utility Small Storage Unit Device Seismic Detector Storage Small Storage Unit Processor Terrain Scan Processor Weapon Assault Rifle Ballistic Gun Assault Rifle Special Weapon Mining Laser Build | -11 -10 -9 ------- Run | Yrd Mat Mat Slots Evolved 2 | . . 2 Power . | . . . Propulsion 1 | . . 1 Utility 1 | . . 1 Weapon . | . . . Parts Attached 31 | 12 3 16 Power 1 | 1 . . Engine 1 | 1 . . Core . | . . . Reactor . | . . . Propulsion 6 | 3 . 3 Treads . | . . . Leg . | . . . Wheel 6 | 3 . 3 Hover . | . . . Flight . | . . . Utility 11 | 4 1 6 Device 8 | 2 1 5 Storage 2 | 2 . . Processor 1 | . . 1 Hackware . | . . . Protection . | . . . Artifact . | . . . Weapon 13 | 4 2 7 Energy Gun . | . . . Energy Cannon . | . . . Ballistic Gun 8 | 3 2 3 Ballistic Cannon . | . . . Launcher . | . . . Special Weapon 5 | 1 . 4 Impact Weapon . | . . . Slashing Weapon . | . . . Piercing Weapon . | . . . Special Melee Weapon . | . . . Unidentified Prototypes . | . . . Parts Lost 12 | . . 12 Power 1 | . . 1 Propulsion 5 | . . 5 Utility 3 | . . 3 Weapon 3 | . . 3 Highest Loss Streak 5 | . . 5 To Critical Strikes . | . . . Average Slot Usage (%) 86 | . 100 81 Engine 9 | . 14 7 Wheel 23 | . 28 21 Device 16 | . 14 16 Storage 11 | . 14 10 Processor 2 | . . 3 Ballistic Gun 15 | . 28 11 Special Weapon 6 | . . 8 Naked Turns . | . . . Heaviest Build 16 | 14 15 16 Greatest Support 42 | 32 32 42 Greatest Overweight (x) 2 | . . 2 Average Overweight (x) . | . . . Largest Inventory Capacity 8 | 8 8 8 Average Capacity 7 | 7 8 7 Most Carried 8 | 8 8 8 Average Carried 7 | 7 7 6 Final Capacity 8 | 8 8 5 Final Carried 8 | 8 8 5 Class Distribution -------------------- 93% | Mutant 6% | Scavenger-Mutant Dominant Class ---------------- Mutant | -10/Materials Mutant | -9/Materials Resources | -11 -10 -9 ----------- Run | Yrd Mat Mat Matter Collected 577 | 462 . 115 Remotely . | . . . Salvage Created 504 | 341 48 115 Parts 53 | 33 4 16 Haulers Intercepted . | . . . Recyclers Shooed 1 | . 1 . Parts Field Recycled . | . . . Retrieved Matter . | . . . Parts Self-Destructed . | . . . Prevented . | . . . Kills | -11 -10 -9 ------- Run | Yrd Mat Mat Combat Hostiles Destroyed 1 | . . 1 Guns 1 | . . 1 Classes Destroyed 6 | 3 1 2 Worker 5 | 4 1 . Builder 3 | . . 3 Tunneler 8 | 8 . . Recycler 1 | 1 . . Watcher 1 | . 1 . Sentry 1 | . . 1 Best Kill Streak 5 | 5 2 2 Combat Bots Only 1 | . . 1 Max Kills in Single Turn 2 | 1 2 1 Gunslinging . | . . . Exploded . | . . . Melee . | . . . Uniques/NPCs Destroyed . | . . . Combat | -11 -10 -9 -------- Run | Yrd Mat Mat Hostile Shots Fired 69 | . . 69 Missed 24 | . . 24 Damage Taken 1309 | . . 1309 Core 407 | . . 407 Absorbed by Shields . | . . . Core Remaining (%) 100 | 100 100 . Volleys Fired 110 | 64 11 35 Largest 2 | 2 2 2 Hottest 100 | 100 40 100 Shots Fired 160 | 95 22 43 Gun 118 | 80 22 16 Cannon . | . . . Launcher . | . . . Special 42 | 15 . 27 Kinetic 118 | 80 22 16 Thermal 42 | 15 . 27 Explosive . | . . . Electromagnetic . | . . . Robot Hit Streak 12 | 7 5 12 Robot Miss Streak 5 | 4 5 1 Penetration Max . | . . . Secondary Targets . | . . . Shots Hit Robots 67 | 46 9 12 Core Hits 31 | 22 4 5 Critical Kills . | . . . Critical Parts Destroyed . | . . . Critical Strikes . | . . . Melee Attacks . | . . . Impact . | . . . Slashing . | . . . Piercing . | . . . Sneak Attacks . | . . . Combat Hostiles . | . . . Follow-up Attacks . | . . . Damage Inflicted 739 | 460 116 163 Guns 715 | 460 116 139 Cannons . | . . . Explosions . | . . . Melee . | . . . Ramming . | . . . Kinetic 715 | 460 116 139 Thermal 24 | . . 24 Explosive . | . . . Electromagnetic . | . . . Impact . | . . . Slashing . | . . . Piercing . | . . . Highest Corruption 19 | . . 19 Average Corruption 12 | . . 12 Corruption Purged . | . . . Corruption Blocked . | . . . Effects 15 | . . 15 Message Errors 4 | . . 4 Matter Fused 5 | . . 5 Energy Discharges 4 | . . 4 Data Loss (minor) 1 | . . 1 Data Loss (major) 1 | . . 1 Overload Shots . | . . . Overflow Damage . | . . . Projectiles . | . . . Explosions . | . . . Melee . | . . . Knockbacks . | . . . Impact . | . . . Kinetic . | . . . Secondary . | . . . Self-Inflicted Damage . | . . . Shots . | . . . Rammed . | . . . Targets Rammed . | . . . Kicked . | . . . Crushed . | . . . Highest Temperature 180 | 180 6 24 Average Temperature 50 | 106 6 9 Received Heat Transfer 159 | . . 159 Siege Activations . | . . . Robots Corrupted . | . . . Combat Hostiles . | . . . Parts Fried . | . . . Impact Corruptions . | . . . Robots Melted . | . . . Combat Hostiles . | . . . Parts Melted . | . . . Heat Transferred 50 | . . 50 Parts Sabotaged . | . . . Parts Stolen . | . . . Parts Stripped . | . . . Power Chain Reactions . | . . . Alert | -11 -10 -9 ------- Run | Yrd Mat Mat Peak Influence 59 | 45 57 59 Initial 24 | . . 24 Average 11 | 6 35 22 Maximum Alert Level . | . . . Low Security (%) 100 | 100 100 100 Level 1 . | . . . Level 2 . | . . . Level 3 . | . . . Level 4 . | . . . Level 5 . | . . . High Security . | . . . Max Security . | . . . Squads Dispatched 3 | . 1 2 Investigation . | . . . Extermination . | . . . Reinforcement 3 | . 1 2 Assault . | . . . Garrison . | . . . Intercept . | . . . Searches Triggered . | . . . Construction Impeded . | . . . Haulers Reinforced . | . . . Active Scanning Responses . | . . . Cargo Convoy Interrupts . | . . . Stealth | -11 -10 -9 --------- Run | Yrd Mat Mat Distress Signals . | . . . Communications Jammed . | . . . Distress Signals . | . . . Times Spotted 17 | . 3 14 Peak Tracking Total 11 | . 3 11 Tactical Retreats 1 | . . 1 Traps | -11 -10 -9 ------- Run | Yrd Mat Mat Traps Triggered . | . . . Indirectly . | . . . Trap Hack Attempts . | . . . Triggered . | . . . Disarmed . | . . . Reprogrammed . | . . . Reused . | . . . Traps Extracted . | . . . Installed . | . . . Triggered . | . . . Machines | -11 -10 -9 ---------- Run | Yrd Mat Mat Machines Disabled . | . . . Max in Single Turn . | . . . Machines Repaired . | . . . Machines Dismantled . | . . . Machines Sabotaged . | . . . Overloaded Fab Kills . | . . . Hacking | -11 -10 -9 --------- Run | Yrd Mat Mat Machines Accessed 3 | . 1 2 Terminals 3 | . 1 2 Fabricators . | . . . Repair Stations . | . . . Recycling Units . | . . . Scanalyzers . | . . . Garrison Access . | . . . Total Hacks 5 | . 2 3 Successful 1 | . . 1 Failed 4 | . 2 2 Catastrophic 3 | . 1 2 Database Lockouts . | . . . Manual . | . . . Terminals 5 | . 2 3 Fabricators . | . . . Repair Stations . | . . . Recycling Units . | . . . Scanalyzers . | . . . Garrison Access . | . . . Terminal Hacks 1 | . . 1 Alert Level 1 | . . 1 Fabricator Hacks . | . . . Repair Station Hacks . | . . . Recycling Unit Hacks . | . . . Scanalyzer . | . . . Garrison Access Hacks . | . . . Unauthorized Hacks . | . . . Terminals . | . . . Fabricators . | . . . Repair Stations . | . . . Recycling Units . | . . . Scanalyzers . | . . . Garrison Access . | . . . Data Cores Recovered . | . . . Used . | . . . Hacking Detections 3 | . 1 2 Full Trace Events . | . . . Feedback Events . | . . . Feedback Blocked . | . . . Robot Schematics Acquired . | . . . Robots Built . | . . . Authchips . | . . . Time . | . . . Total Robot Build Rating . | . . . Part Schematics Acquired . | . . . Parts Built . | . . . Authchips . | . . . Time . | . . . Total Part Build Rating . | . . . Parts Repaired . | . . . Time . | . . . Parts Recycled . | . . . Recycled Matter . | . . . Retrieved Matter . | . . . Retrieved Components . | . . . Parts Scanalyzed . | . . . Part Schematics Acquired . | . . . Parts Damaged . | . . . Bothacking | -11 -10 -9 ------------ Run | Yrd Mat Mat Used RIF Installer . | . . . Robots Hacked . | . . . Non-combat . | . . . Combat . | . . . Robot Hacks Applied . | . . . Relay Couplers Released . | . . . Fabnet Peak Effective % . | . . . Robots Rewired . | . . . Allies Hacked . | . . . Hacks Repelled . | . . . Allies | -11 -10 -9 -------- Run | Yrd Mat Mat Total Allies . | . . . Largest Group . | . . . Highest-Rated Group . | . . . Highest-Rated Ally . | . . . Total Orders . | . . . Ally Attacks . | . . . Total Damage . | . . . Kills . | . . . Allies Corrupted . | . . . Allies Melted . | . . . Intel | -11 -10 -9 ------- Run | Yrd Mat Mat Robot Analysis Total . | . . . Derelict Logs Recovered . | . . . Drone Launches . | . . . Drone Recoveries . | . . . Exploration | -11 -10 -9 ------------- Run | Yrd Mat Mat Turns Passed 2907 | 2167 197 543 Spaces Moved 913 | 551 138 224 Core 57 | 1 . 56 Treads . | . . . Legs . | . . . Wheels 856 | 550 138 168 Hover . | . . . Flight . | . . . Fastest Speed 50 | 50 100 50 Average Speed 96 | 99 100 85 Slowest Speed 150 | 100 100 150 Overloaded Moves . | . . . Propulsion Burnouts . | . . . Robots Hopped . | . . . Cave-ins Triggered 3 | . . 3 Exploration Rate (%) 30 | 33 34 23 Regions Visited 2 Branch Regions . Pre-discovered Areas . | . . . Known Exits Taken . | . . . Unknown Exits Taken 2 | 1 1 . Scrap Searched . | . . . Spaces Dug 28 | 3 . 25 Terrain Destroyed 29 | 3 . 26 Melee . | . . . Projectile 29 | 3 . 26 AOE . | . . . Terrain Rammed . | . . . Walls Destroyed . | . . . Machines Disabled . | . . . Actions | -11 -10 -9 --------- Run | Yrd Mat Mat Total 2703 | 2053 175 475 Wait 1610 | 1404 16 190 Move 911 | 550 137 224 Hop . | . . . Pick Up 26 | 15 4 7 Fast Attach 8 | 8 . . Attach 6 | . . 6 Detach . | . . . Swap 17 | 4 3 10 Drop 15 | 8 4 3 Fire 110 | 64 11 35 Melee . | . . . Ram . | . . . Kick . | . . . Crush . | . . . Escape Stasis . | . . . Rewire . | . . . Trap . | . . . Miscellaneous . | . . . Route ------- -11/Scrapyard -10/Materials (discovered 2 exits: *Mat / [*Min]) -9/Materials History --------- Turn | Location | Event 9 | -11/Scrapyard | Discovered new exit (range 15) 2168 | -11/Scrapyard | Entered Materials 2198 | -10/Materials | Build established: Mutant 2299 | -10/Materials | Discovered new exit (range 13) 2333 | -10/Materials | Discovered new exit (range 16) 2365 | -10/Materials | Entered another Materials area 2365 | -9/Materials | Evolved 2 slots: Propulsion x1, Utility x1 2564 | -9/Materials | Crushed by falling debris 2595 | -9/Materials | Lost 3 parts (3n) 2740 | -9/Materials | Crushed by falling debris 2740 | -9/Materials | System corruption reached 10% 2749 | -9/Materials | Crushed by falling debris 2780 | -9/Materials | Lost 4 parts (1p1n1u1w) 2889 | -9/Materials | Core integrity fell below 50% 2905 | -9/Materials | Core integrity fell below 20% 2908 | -9/Materials | Destroyed by S-10 Pest with Light Assault Rifle Last Messages --------------- 02816_ Acquired Lrg. Storage Unit. 02819_ System corrupted: Matter fused (-8). 02821_ Connecting with Terminal... 02835_ System corrupted: Matter fused (-10). 02851_ Assault Rifle destroyed. 02853_ C9%I0SHS1:HXP3CDC9AV0XSND#UMN%: 02857_ Wheel destroyed. 02862_ Seismic Detector destroyed. 02863_ Mining Laser destroyed. 02869_ :=XORA#9%LLNCMFQLM ADQI5:VO 02871_ O-16 Technician: "IFF HANDSHAKE FAILED. SECURING TERMINAL." 02881_ ALERT: Hostiles spotted, dispatching reinforcements to Terminal M006. 02884_ ALERT: Hostiles spotted, dispatching reinforcements to Terminal M008. 02886_ System corrupted: Component data lost. 02891_ Sml. Storage Unit destroyed. 02902_ System corrupted: Matter fused (-10). 02907_ Critical hit (Burn: +37). Map ----- +----------------------------------------------------+ | | | | | | | | | | | | | | | | | | | | | | | | | | | | | | | | | | | ??????????????????????????????????????????????#### | | ??????????????????????????????????????????????## | | ??????????????????????????????????????????????## | | ??????????????????????????????????????????????## | | ??????????????#!??????????###################### | | ??????????????# ???????# ############### | | ??????????????# ###### + | | ??????????????# ss # | | ?????????????+ @ Y s / | | ?????????????????########## s # | | ??????????????????????????# ########## # | | ??????????????????????????############## # | | ??????????????????????????## ?????????## # " | | ??????????????????????????## ? ######### ##### " | | ??????????????????????????## ? ########## ######## | | ?????????????????? #### # # ######## | | ??????????????????#+######## # """ + ## | | ?????????????????? [ # """ # #####/## | | ???????????????????? # """ # # | | ??????????????????????? """ "" # # | | ???????????????????????""""" T# # # ! | | ????????????????????????" " "# "T" |# # ! | | ?????????????????????? + """ # # | | ????????????????????? ! # # # | | ?????????????????????####### ? ########"#+# | | ?????????????????????####### ? ## # | | ?????????????????????????? # ???# # | | ?????????????????????????? # ???# # | | ????????????????????????????????# # | | ????????????????????????????????# """ """ ##/##### | | ????????????????????????????????# """ """ ## #???? | | ????????????????????????????????# """ """ ## #???? | | ??????????????????????????##????# ## #???? | +----------------------------------------------------+ Best States ------------- Heat Dissipation 28 Energy Generation 10 Energy Capacity 250 Matter Stores 300 Matter Capacity 300 Sight Range 16 Robot Scan Range 14 Terrain Scan Range 16 Terrain Scan Density 85 ECM Strength 1 Evasion (%) 50 Item Schematics ----------------- None Robot Schematics ------------------ None Fabricated ------------ Nothing Alien Tech Used ----------------- None Achievements -------------- None Challenges ------------ None Game ------ Seed TerrabombSuspensionLattice Manual? 0 Play Time 00:27:25 Cumulative 7.0 hours Start 2024.07.06 @ 17:55:23 End 2024.07.06 @ 18:19:54 Sessions 1 Manual Loads 0 Difficulty Rogue Special Mode None Game No. 4 Rogue 4 Adventurer 0 Explorer 0 Win Type - Total 0 Types 0/0/0/0/0/0/0/0/0 Lore% 1 Gallery% 13 Achievement% 10 Wizard Run 0 Options --------- Layout 1 ASCII 0 Keyboard 0 Movement Mouse Keybinds 0 Fullscreen 1 Font 24/Smallcaps Map View 50x35 Zoom Use 0% Tactical HUD 1 Map Filters NONE Filters NONE Steam 1 RUN: 57724752-ece2-4246-89db-22b17205fb5a